Cogmind - Beta 16 @@@ ROGUE MODE // 2025.12.27 @ 11:22:21 Player: Compilatron Result: Destroyed by Y-45 Defender with Beam Rifle Performance ------------- Evolutions (1) 500 Regions Visited (3) 600 Robots Destroyed (32) 160 Value Destroyed (935) 935 Prototype IDs (4) 80 Alien Tech Used (0) 0 Bonus (86) 86 TOTAL SCORE: 2361 Bonus ------- Follower Combat Kills 106 Friendly Fire -20 Cogmind --------- Core Integrity 0/400 Matter 205/300 Energy 100/100 System Corruption 0% Temperature Cool (27) Movement Core (500) Ox9 Location -9/Storage Parts ------- > --- POWER (1) -------- Heavy Ion Engine > --- PROPULSION (3) --- Carbon-fiber Leg > --- UTILITY (3) ------ Large Storage Unit Sensor Array > --- WEAPON (2) ------- (None) > --- INVENTORY (15) --- Heavy Ion Engine Heavy Ion Engine VSS Leg Wheel VTOL Module Improved Flight Unit Large Matter Pod (150) Improved Targeting Computer ECM Suite Heavy Assault Rifle Heavy Assault Rifle Improved Assault Rifle Grenade Launcher Peak State ------------ > --- POWER ------------ Heavy Ion Engine > --- PROPULSION ------- VSS Leg VSS Leg VSS Leg > --- UTILITY ---------- Large Storage Unit Sensor Array Drone Bay > --- WEAPON ----------- Ion Burst Cannon Improved Assault Rifle > --- INVENTORY -------- Ion Engine Improved Ion Engine Aluminum Leg Aluminum Leg VSS Leg Wheel VTOL Module Improved Flight Unit Large Matter Pod Improved Targeting Computer ECM Suite Heavy Assault Rifle Heavy Assault Rifle Improved Assault Rifle Grenade Launcher [Rating: 30] Favorites ----------- Power Ion Engine Engine Ion Engine Propulsion VSS Leg Treads Light Treads Leg VSS Leg Wheel Wheel Flight Unit Improved Flight Unit Utility Large Storage Unit Device Sensor Array Storage Large Storage Unit Protection Light Armor Plating Weapon Assault Rifle Energy Cannon Ion Burst Cannon Ballistic Gun Assault Rifle Build | -11 -10 -9 -9 ------- Run | Yrd Mat Mat Sto Slots Evolved 2 | . . 2 . Power . | . . . . Propulsion 1 | . . 1 . Utility 1 | . . 1 . Weapon . | . . . . Parts Attached 21 | 2 4 5 10 Power 4 | 1 . . 3 Engine 4 | 1 . . 3 Core . | . . . . Reactor . | . . . . Propulsion 8 | . 2 4 2 Treads 2 | . 2 . . Leg 4 | . . 3 1 Wheel 1 | . . 1 . Hover . | . . . . Flight 1 | . . . 1 Utility 5 | . 2 1 2 Device 3 | . . 1 2 Storage 1 | . 1 . . Processor . | . . . . Hackware . | . . . . Protection 1 | . 1 . . Artifact . | . . . . Weapon 4 | 1 . . 3 Energy Gun . | . . . . Energy Cannon 1 | . . . 1 Ballistic Gun 3 | 1 . . 2 Ballistic Cannon . | . . . . Launcher . | . . . . Special Weapon . | . . . . Impact Weapon . | . . . . Slashing Weapon . | . . . . Piercing Weapon . | . . . . Special Melee Weapon . | . . . . Unidentified Prototypes 4 | . . . 4 Parts Lost 6 | . 1 . 5 Power . | . . . . Propulsion 2 | . . . 2 Utility 3 | . 1 . 2 Weapon 1 | . . . 1 Highest Loss Streak 3 | . 1 . 3 To Critical Strikes . | . . . . Average Backups 11 | 6 7 10 12 Power 1 | 1 1 1 1 Propulsion 4 | 4 3 5 5 Utility 2 | . 1 2 2 Weapon 2 | 1 1 2 3 Tool/Special . | . . . . Unused Backups 18 | . 2 . 16 Power 2 | . . . 2 Propulsion 6 | . 1 . 5 Utility 4 | . . . 4 Weapon 6 | . 1 . 5 Tool/Special . | . . . . Average Slot Usage (%) 91 | . 95 87 91 Engine 11 | . 14 11 11 Treads 4 | . 16 3 . Leg 26 | . 11 27 31 Device 12 | . . 11 17 Storage 11 | . 14 11 11 Protection 2 | . 9 . . Energy Cannon 5 | . . . 8 Ballistic Gun 16 | . 28 22 11 Peak Build Rating 30 | 6 7 15 30 Average Rating 19 | 6 6 14 24 On Entrance 8 | 6 6 6 15 Avg Prop Armor Cover (%) 15 | . . 18 12 Naked Turns . | . . . . Heaviest Build 46 | 14 32 30 46 Greatest Support 40 | 20 40 36 39 Greatest Overweight (x) 12 | . 1 2 12 Average Overweight (x) . | . . . . Largest Inventory Capacity 15 | 8 15 15 15 Average Capacity 14 | 8 12 15 15 Most Carried 15 | 6 9 12 15 Average Carried 11 | 6 7 10 12 Final Capacity 15 | 8 15 15 15 Final Carried 13 | 6 9 10 13 Class Distribution -------------------- 100% | Mutant Dominant Class ---------------- Mutant | -10/Materials Mutant | -9/Materials Mutant | -9/Storage Resources | -11 -10 -9 -9 ----------- Run | Yrd Mat Mat Sto Matter Collected 848 | 194 185 . 469 Remotely . | . . . . Salvage Created 1091 | . 233 . 858 Parts 64 | . 15 . 49 Haulers Intercepted 1 | . . . 1 Recyclers Shooed . | . . . . Parts Field Recycled . | . . . . Retrieved Matter . | . . . . Parts Self-Destructed . | . . . . Prevented . | . . . . Parts Restored . | . . . . Kills | -11 -10 -9 -9 ------- Run | Yrd Mat Mat Sto Combat Hostiles Destroyed 26 | . 9 . 17 Guns 10 | . 9 . 1 Cannons 15 | . . . 15 Classes Destroyed 9 | . 3 . 6 Worker 2 | . . . 2 Builder 1 | . . . 1 Hauler 1 | . . . 1 Operator 1 | . 1 . . Watcher 1 | . . . 1 Swarmer 6 | . 6 . . Grunt 10 | . 3 . 7 Brawler 1 | . . . 1 Sentry 9 | . . . 9 Best Kill Streak 6 | . 3 . 6 Combat Bots Only 4 | . 3 . 4 Max Kills in Single Turn 2 | . 1 . 2 Gunslinging . | . . . . Exploded . | . . . . Melee . | . . . . Uniques/NPCs Destroyed . | . . . . Combat | -11 -10 -9 -9 -------- Run | Yrd Mat Mat Sto Hostile Shots Fired 169 | . 75 2 92 Missed 52 | . 22 2 28 Hits 117 | . 53 . 64 Melee 2 | . . . 2 Projectile 115 | . 53 . 62 Critical Strikes 3 | . . . 3 Damage Taken 1715 | . 529 . 1186 Core 509 | . 97 . 412 Absorbed by Shields . | . . . . Core Remaining (%) 80 | 100 61 . . Volleys Fired 103 | . 37 1 65 Largest 2 | . 2 2 2 Hottest 100 | . 40 40 100 Shots Fired 150 | . 73 2 75 Gun 95 | . 73 2 20 Cannon 55 | . . . 55 Launcher . | . . . . Special . | . . . . Kinetic 95 | . 73 2 20 Thermal 55 | . . . 55 Explosive . | . . . . Electromagnetic . | . . . . Robot Hit Streak 11 | . 11 5 11 Robot Miss Streak 8 | . 6 . 8 Penetration Max . | . . . . Secondary Targets . | . . . . Shots Hit Robots 82 | . 37 2 43 Core Hits 35 | . 13 . 22 Critical Kills . | . . . . Critical Parts Destroyed 1 | . 1 . . Critical Strikes 1 | . 1 . . Destroy 1 | . 1 . . Melee Attacks . | . . . . Impact . | . . . . Slashing . | . . . . Piercing . | . . . . Sneak Attacks . | . . . . Combat Hostiles . | . . . . Follow-up Attacks . | . . . . Damage Inflicted 1887 | . 522 24 1341 Guns 655 | . 522 24 109 Cannons 1232 | . . . 1232 Explosions . | . . . . Melee . | . . . . Ramming . | . . . . Kinetic 655 | . 522 24 109 Thermal 1232 | . . . 1232 Explosive . | . . . . Electromagnetic . | . . . . Impact . | . . . . Slashing . | . . . . Piercing . | . . . . Highest Corruption 2 | . 2 . . Average Corruption 2 | . 2 . . Corruption Purged . | . . . . Corruption Blocked . | . . . . Effects 3 | . 3 . . Message Errors 1 | . 1 . . Matter Fused 1 | . 1 . . Weapon Failures 1 | . 1 . . Overload Shots . | . . . . Overflow Damage . | . . . . Projectiles . | . . . . Explosions . | . . . . Melee . | . . . . Knockbacks . | . . . . Impact . | . . . . Kinetic . | . . . . Secondary . | . . . . Self-Inflicted Damage . | . . . . Shots . | . . . . Rammed . | . . . . Targets Rammed . | . . . . Kicked . | . . . . Crushed . | . . . . Highest Temperature 746 | . 12 . 746 Average Temperature 194 | . 4 . 213 Received Heat Transfer 465 | . 180 . 285 Effects 30 | . . . 30 Shutdowns 4 | . . . 4 Energy Bleed 5 | . . . 5 Interference 3 | . . . 3 Matter Decay 5 | . . . 5 Short Circuit 2 | . . . 2 Damage (minor) 3 | . . . 3 Damage (major) 4 | . . . 4 Damage (core) 4 | . . . 4 Siege Activations . | . . . . Martial Activations . | . . . . Shielding Activations . | . . . . Robots Disrupted . | . . . . Combat Hostiles . | . . . . Robots Corrupted . | . . . . Combat Hostiles . | . . . . Parts Fried . | . . . . Impact Corruptions . | . . . . Robots Melted . | . . . . Combat Hostiles . | . . . . Parts Melted 2 | . . . 2 Heat Transferred 1475 | . . . 1475 Parts Sabotaged . | . . . . Parts Stolen . | . . . . Parts Stripped . | . . . . Power Chain Reactions . | . . . . Alert | -11 -10 -9 -9 ------- Run | Yrd Mat Mat Sto Maximum Alert Level 1 | . . . 1 Low Security (%) 90 | 100 100 100 85 Level 1 9 | . . . 14 Level 2 . | . . . . Level 3 . | . . . . Level 4 . | . . . . Level 5 . | . . . . High Security . | . . . . Max Security . | . . . . Peak Influence 322 | . 111 21 322 Initial 21 | . . 21 . Average 76 | . 57 3 94 Influence Increases 1010 | . 262 2 746 Destroy 0b10 Robot/C 640 | . 180 . 460 Destroy 0b10 Robot/NC 30 | . 5 . 25 Destroy Leader 164 | . 30 . 134 Allied During Kill 22 | . . . 22 Successful Hack 43 | . 15 2 26 Disable Machine 60 | . 15 . 45 Destroy Structure 6 | . 2 . 4 Partial Spotted 15 | . . . 15 Lose Combat Pursuer 30 | . 15 . 15 Influence Decreases 718 | . 210 54 454 Entered New Map 31 | . . 31 . Time Decay 587 | . 200 23 364 Lost Part 60 | . 10 . 50 Lost Ally 40 | . . . 40 Squads Dispatched 6 | . 2 . 4 Investigation 2 | . . . 2 Extermination . | . . . . Reinforcement 2 | . 2 . . Assault 2 | . . . 2 Garrison . | . . . . Intercept . | . . . . Searches Triggered . | . . . . Construction Impeded . | . . . . Haulers Reinforced . | . . . . Active Scanning Responses . | . . . . Cargo Convoy Interrupts . | . . . . Stealth | -11 -10 -9 -9 --------- Run | Yrd Mat Mat Sto Distress Signals 4 | . . . 4 Communications Jammed . | . . . . Distress Signals . | . . . . Times Spotted 45 | . 13 3 29 Peak Tracking Total 4 | . 3 3 4 Tactical Retreats 2 | . 1 . 1 Traps | -11 -10 -9 -9 ------- Run | Yrd Mat Mat Sto Traps Triggered 4 | . 1 . 3 Indirectly . | . . . . Trap Hack Attempts . | . . . . Triggered . | . . . . Disarmed . | . . . . Reprogrammed . | . . . . Reused . | . . . . Traps Extracted . | . . . . Installed . | . . . . Triggered . | . . . . Machines | -11 -10 -9 -9 ---------- Run | Yrd Mat Mat Sto Machines Disabled 4 | . 1 . 3 Max in Single Turn 1 | . 1 . 1 Machines Repaired . | . . . . Machines Dismantled . | . . . . Machines Sabotaged . | . . . . Overloaded Fab Kills . | . . . . Hacking | -11 -10 -9 -9 --------- Run | Yrd Mat Mat Sto Machines Accessed 13 | . 3 1 9 Terminals 11 | . 3 . 8 Fabricators . | . . . . Repair Stations . | . . . . Recycling Units . | . . . . Scanalyzers 1 | . . 1 . Garrison Access 1 | . . . 1 Total Hacks 34 | . 8 3 23 Successful 22 | . 5 3 14 Failed 12 | . 3 . 9 Catastrophic 1 | . . . 1 Database Lockouts . | . . . . Manual 21 | . 8 . 13 Terminals 28 | . 8 . 20 Fabricators . | . . . . Repair Stations . | . . . . Recycling Units . | . . . . Scanalyzers 3 | . . 3 . Garrison Access 3 | . . . 3 Terminal Hacks 6 | . . . 6 Record 1 | . . . 1 Open Door 2 | . . . 2 Recall Investigation 1 | . . . 1 Hauler Manifests 1 | . . . 1 Zone Layout 1 | . . . 1 Fabricator Hacks . | . . . . Repair Station Hacks . | . . . . Recycling Unit Hacks . | . . . . Scanalyzer 3 | . . 3 . Retrieve Study 3 | . . 3 . Garrison Access Hacks . | . . . . Unauthorized Hacks 13 | . 5 . 8 Terminals 12 | . 5 . 7 Track 2 | . 1 . 1 Botnet 8 | . 3 . 5 Operators 2 | . 1 . 1 Fabricators . | . . . . Repair Stations . | . . . . Recycling Units . | . . . . Scanalyzers . | . . . . Garrison Access 1 | . . . 1 Reprogram 1 | . . . 1 Data Cores Recovered . | . . . . Used . | . . . . Hacking Detections 9 | . 1 1 7 Full Trace Events 1 | . . . 1 Feedback Events . | . . . . Feedback Blocked . | . . . . Robot Schematics Acquired . | . . . . Robots Built . | . . . . Authchips . | . . . . Time . | . . . . Total Robot Build Rating . | . . . . Part Schematics Acquired . | . . . . Parts Built . | . . . . Authchips . | . . . . Time . | . . . . Total Part Build Rating . | . . . . Part Studies Acquired 3 | . . 3 . Parts Repaired . | . . . . Time . | . . . . Parts Recycled . | . . . . Recycled Matter . | . . . . Retrieved Matter . | . . . . Retrieved Components . | . . . . Parts Scanalyzed . | . . . . Part Schematics Acquired . | . . . . Parts Damaged . | . . . . Bothacking | -11 -10 -9 -9 ------------ Run | Yrd Mat Mat Sto Used RIF Installer . | . . . . Robots Hacked . | . . . . Non-combat . | . . . . Combat . | . . . . Robot Hacks Applied . | . . . . Relay Couplers Released . | . . . . Fabnet Peak Effective % . | . . . . Robots Rewired . | . . . . Allies Hacked . | . . . . Hacks Repelled . | . . . . Allies | -11 -10 -9 -9 -------- Run | Yrd Mat Mat Sto Total Allies 3 | . . . 3 Largest Group 2 | . . . 2 Highest-Rated Group 62 | . . . 62 Highest-Rated Ally 31 | . . . 31 Total Orders 2 | . . . 2 EXPLORE 2 | . . . 2 Ally Attacks 32 | . . . 32 Total Damage 378 | . . . 378 Kills 6 | . . . 6 Allies Corrupted . | . . . . Allies Melted . | . . . . Intel | -11 -10 -9 -9 ------- Run | Yrd Mat Mat Sto Active Infowar (turns) 1525 | . . 218 1307 Sensors 1525 | . . 218 1307 Robot Analysis Total . | . . . . Derelict Logs Recovered . | . . . . Drone Launches 2 | . . . 2 Drone Recoveries 2 | . . . 2 Exploration | -11 -10 -9 -9 ------------- Run | Yrd Mat Mat Sto Turns Passed 2148 | 3 496 218 1431 Spaces Moved 1131 | 1 265 158 707 Core 13 | . . . 13 Treads 136 | . 136 . . Legs 962 | 1 129 138 694 Wheels 20 | . . 20 . Hover . | . . . . Flight . | . . . . Fastest Speed 90 | 120 120 90 90 Average Speed 146 | 120 141 92 161 Slowest Speed 650 | 120 190 110 650 Overloaded Moves . | . . . . Propulsion Burnouts . | . . . . Robots Hopped . | . . . . Potential Cave-ins . | . . . . Cave-ins Triggered . | . . . . Exploration Rate (%) 35 | 2 46 11 84 Regions Visited 3 Branch Regions 1 Pre-discovered Areas . | . . . . Known Exits Taken . | . . . . Unknown Exits Taken 3 | 1 1 1 . Scrap Searched . | . . . . Spaces Dug . | . . . . Terrain Destroyed . | . . . . Melee . | . . . . Projectile . | . . . . AOE . | . . . . Terrain Rammed . | . . . . Walls Destroyed . | . . . . Machines Disabled . | . . . . Actions | -11 -10 -9 -9 --------- Run | Yrd Mat Mat Sto Total 1444 | 2 312 227 903 Wait 147 | . 1 57 89 Move 1128 | . 264 157 707 Hop . | . . . . Pick Up 26 | . 5 5 16 Fast Attach . | . . . . Attach 7 | . 1 2 4 Detach 1 | . . . 1 Swap 16 | 2 3 3 8 Drop 16 | . 1 2 13 Fire 103 | . 37 1 65 Melee . | . . . . Ram . | . . . . Kick . | . . . . Crush . | . . . . Escape Stasis . | . . . . Rewire . | . . . . Trap . | . . . . Miscellaneous . | . . . . Route ------- -11/Scrapyard -10/Materials -9/Materials -9/Storage (discovered 1 exit: [Rec]) History --------- Turn | Location | Event 4 | -11/Scrapyard | Discovered new exit (range 0) 4 | -11/Scrapyard | Entered Materials 303 | -10/Materials | Build established: Mutant 484 | -10/Materials | Discovered new exit (range 10) 500 | -10/Materials | Entered another Materials area 500 | -9/Materials | Evolved 2 slots: Propulsion x1, Utility x1 709 | -9/Materials | Discovered new exit (range 5) 718 | -9/Materials | Entered Storage 1549 | -9/Storage | Discovered new exit (range 15) 1567 | -9/Storage | Met a pair of Derelict thieves 2056 | -9/Storage | Lost 3 parts (2n1u) 2057 | -9/Storage | Core integrity fell below 50% 2064 | -9/Storage | Core integrity fell below 20% 2149 | -9/Storage | Destroyed by Y-45 Defender with Beam Rifle Last Messages --------------- 02068_ Overheating: Core damaged (-56). 02068_ Acquired 40 matter. 02069_ Overheating: Matter decay (-32). 02071_ Overheating: Matter decay (-27). 02071_ R-06 Scavenger collects Prototype Energy Gun. 02072_ Overheating: Ion Burst Cannon damaged (-31). 02075_ R-06 Scavenger collects Prototype Energy Gun. 02077_ Hvy. Ion Engine broken. 02077_ Overheating: Short circuit. 02079_ R-06 Scavenger collects Prototype Energy Gun. 02082_ Overheating: Energy bleed (-13). 02107_ Acquired 23 matter. 02124_ U-05 Engineer builds a Door. 02127_ Acquired 34 matter. 02140_ Ion Burst Cannon destroyed. 02149_ Critical hit (Burn: +37). Map ----- +----------------------------------------------------+ | | | | | | | | | | | | | ?????????????????????????????????????????????????? | | ?????????????????????????????????????????????????? | | ?????????????????????????????????????????????????? | | ?????????????????????????????????????????????????? | | ?????????????????????????????????????????????????? | | ?????????????????????????????????????????????????? | | ?????????????????????????????????????????????????? | | #????????????????????????????????????????????????? | | ##??????????????????????????????????????????????? | | ! #??????????????????????????????????????????????? | | ! #?????""#??????????????????????????????????????? | | #???#"R"#??????????????????????????????????????? | | #####" "###????????????????????????????????????? | | !# #????#???????????????????????????????? | | # """"" #??#?""??????????????????????????????? | | # """"" #?##""T"?????????????????????????????? | | # """"" #?# ???????????????? ##????????? | | # #?# ?########### #????????? | | # #?# # a #????????? | | # ] #?# ;@ Y Y/????????? | | # #?# """ """ # #????????? | | +######+#####?????" ""??# =####### #????????? | | ! #####????" ????#*! #?### ##?????????????? | | ! + #??????????#%![#? ?????????????? | | = #T###??????????#==u# """ ?????????????? | | +##### ###????????????# !# ! """ ?????????????? | | # #??????????????+ ! + """ ?????????????? | | # #??????????????# !# #???????????? | | """" # #??????????????# %# """ #???????????? | | ] ]" # ^#??????????????# *#? """ ?#???????????? | | """" # #??????????????# #? """??????????????? | | "" # #??????????????# #?? ??????????????? | | " #####??????????????# ########?????????????? | | """ #?????????########## [%## #"T"###???????????? | | #?????????# # # #???????????? | | ######?????????# # # """"" #???????????? | | ???????????????# """ + #! """"" #???????????? | | ???????????????# """"[" # # """"" #?????######? | | ???????????????# "*""*" # # #?#### =%## | | ???????????????# "* =][=+! + """"" #?# [*# | | ???????????????# "*"" # [ # """"" #?# | | ???????????????# """ %=# ### """"" #?# # | | ???????????????# [ # #?# #?# | | ???????????????##########%############## # | +----------------------------------------------------+ Best States ------------- Heat Dissipation 38 Energy Generation 14 Energy Capacity 280 Matter Stores 300 Matter Capacity 300 Sight Range 16 Robot Scan Range 14 Terrain Scan Density 10 Armor Coverage 150 Evasion (%) 57 Recoil Reduction 2 Item Schematics ----------------- None Robot Schematics ------------------ None Fabricated ------------ Nothing Repaired ---------- Nothing Studied --------- Ion Engine | -9/Materials | Hacked Assault Rifle | -9/Materials | Hacked Grenade Launcher | -9/Materials | Hacked Alien Tech Used ----------------- None Achievements -------------- Sprinter Challenges ------------ None Game ------ Seed LinkedTechClaw Manual? 0 Play Time 00:22:09 Cumulative 64.6 hours Start 2025.12.27 @ 11:05:11 End 2025.12.27 @ 11:22:21 Sessions 1 Manual Loads 0 Difficulty Rogue Special Mode None Game No. 98 Rogue 76 Adventurer 20 Explorer 2 Win Type - Total 0 Types 0/0/0/0/0/0/0/0/0/0 Lore% 43 Gallery% 37 Achievement% 26 Wizard Run 0 Options --------- Layout 1 ASCII 0 Keyboard 0 Movement Numpad Keybinds 0 Fullscreen 2 Font 24/Smallcaps Map View 50x35 Zoom Use 0% Tactical HUD 1 Map Filters NONE Filters NONE Steam 1 RUN: 70e21c37-ce74-43a7-bd7e-2ad9760f98a3